Cogmind - Beta 14 @@@ ROGUE MODE // 2024.08.19 @ 18:04:50 Player: Darcyisverycute Result: Destroyed by H-55 Commando with Gauss Rifle Performance ------------- Evolutions (2) 1000 Regions Visited (7) 1400 Robots Destroyed (79) 395 Value Destroyed (2060) 2060 Prototype IDs (6) 120 Alien Tech Used (0) 0 Bonus (679) 679 TOTAL SCORE: 5654 Bonus ------- High Alert Combat Kills 81 Follower Combat Kills 99 Entered Garrisons 200 Used RIF Installer 500 Friendly Fire -201 Cogmind --------- Core Integrity 0/550 Matter 85/300 Energy 120/125 System Corruption 32% Temperature Cool (0) Movement Treading (160) Location -8/Materials Parts ------- > --- POWER (1) -------- Light Ion Engine > --- PROPULSION (3) --- Light Treads Improved Flight Unit > --- UTILITY (5) ------ Medium Storage Unit Improved Signal Interpreter Hacking Suite > --- WEAPON (2) ------- Maul > --- INVENTORY (10) --- Heavy Ion Engine Nuclear Core Large Storage Unit Melee Analysis Suite Relay Coupler [NC] (24) Relay Coupler [NC] (34) Relay Coupler [Cutter] (21) Relay Coupler [Grunt] (41) Relay Coupler [Sentry] (18) Relay Coupler [Hunter] (12) Peak State ------------ > --- POWER ------------ Micro Nuclear Core > --- PROPULSION ------- Carbon-fiber Leg Gravmag System Gravmag System > --- UTILITY ---------- Medium Storage Unit Weight Redist. System Improved Signal Interpreter Hacking Suite Relay Coupler [Grunt] > --- WEAPON ----------- Beam Rifle Maul > --- INVENTORY -------- Heavy Ion Engine Nuclear Core Improved Flight Unit Large Storage Unit Relay Coupler [NC] Relay Coupler [NC] Relay Coupler [Cutter] Relay Coupler [Grunt] Relay Coupler [Sentry] Relay Coupler [Hunter] [Rating: 33] Favorites ----------- Power Nuclear Core Engine Light Ion Engine Power Core Nuclear Core Propulsion Light Treads Treads Light Treads Leg Aluminum Leg Wheel Wheel Hover Unit Gravmag System Flight Unit Improved Flight Unit Utility Machine Analyzer Device Improved Heat Sink Storage Large Storage Unit Processor Machine Analyzer Hackware Hacking Suite Protection Medium Armor Plating Weapon Autogun Energy Gun Improved EM Shotgun Ballistic Gun Autogun Launcher Rocket Launcher Special Weapon Plasma Cutter Impact Weapon Maul Build | -11 -10 -10 -9 -9 -8 -8 -8 ------- Run | Yrd Mat Min Mat Min Mat Gar Mat Slots Evolved 4 | . . . 2 . 2 . . Power . | . . . . . . . . Propulsion 1 | . . . . . 1 . . Utility 3 | . . . 2 . 1 . . Weapon . | . . . . . . . . Parts Attached 69 | 5 2 2 20 2 4 23 11 Power 9 | 1 . 1 3 . . 3 1 Engine 6 | 1 . 1 2 . . 1 1 Core 3 | . . . 1 . . 2 . Reactor . | . . . . . . . . Propulsion 20 | 2 . . 4 1 1 5 7 Treads 6 | . . . 2 1 1 . 2 Leg 8 | 2 . . 1 . . 2 3 Wheel 2 | . . . 1 . . 1 . Hover 2 | . . . . . . 2 . Flight 2 | . . . . . . . 2 Utility 16 | . 2 . 5 1 3 3 2 Device 2 | . . . 1 . . 1 . Storage 4 | . 1 . 2 . . . 1 Processor 4 | . 1 . 2 . 1 . . Hackware 2 | . . . . . . 1 1 Protection 4 | . . . . 1 2 1 . Artifact . | . . . . . . . . Weapon 24 | 2 . 1 8 . . 12 1 Energy Gun 6 | 1 . . 4 . . 1 . Energy Cannon . | . . . . . . . . Ballistic Gun 9 | 1 . . 4 . . 4 . Ballistic Cannon . | . . . . . . . . Launcher 3 | . . 1 . . . 2 . Special Weapon 1 | . . . . . . 1 . Impact Weapon 5 | . . . . . . 4 1 Slashing Weapon . | . . . . . . . . Piercing Weapon . | . . . . . . . . Special Melee Weapon . | . . . . . . . . Unidentified Prototypes 3 | . . . 2 . . . 1 Corrupted Parts 3 | . . . . . . . 3 System Corruption 25 | . . . . . . . 25 Parts Lost 23 | . . . 5 1 . 10 7 Power 3 | . . . 1 . . 1 1 Propulsion 9 | . . . 1 . . 4 4 Utility 5 | . . . . 1 . 2 2 Weapon 6 | . . . 3 . . 3 . Highest Loss Streak 8 | . . . 2 1 . 8 2 To Critical Strikes . | . . . . . . . . Average Slot Usage (%) 94 | . 85 100 98 100 89 90 78 Engine 4 | . 14 14 7 . . 4 1 Core 5 | . . . 3 11 9 4 2 Treads 8 | . . . 7 11 18 10 1 Leg 7 | . 28 28 5 . . 6 9 Wheel 7 | . . . 7 11 9 8 . Device 5 | . . . 10 7 . . 5 Storage 10 | . 12 14 11 11 9 9 9 Processor 17 | . 2 14 21 22 18 15 9 Hackware 2 | . . . . . . 5 14 Protection 2 | . . . . 3 8 7 . Energy Gun 6 | . 14 14 15 . . 1 3 Ballistic Gun 11 | . 14 5 4 22 18 11 . Launcher 1 | . . 8 1 . . . . Impact Weapon 1 | . . . . . . 3 9 Peak Build Rating 33 | 5 8 9 21 18 25 29 33 Average Rating 18 | 3 6 8 17 17 23 26 23 On Entrance 13 | . 5 8 9 18 17 24 29 Naked Turns . | . . . . . . . . Heaviest Build 48 | 6 11 15 35 38 46 48 32 Greatest Support 31 | 20 20 20 20 20 10 24 31 Greatest Overweight (x) 4 | . . . 3 3 4 4 3 Average Overweight (x) 1 | . . . 1 2 3 2 . Largest Inventory Capacity 15 | 5 8 8 15 15 15 15 15 Average Capacity 12 | 5 7 8 10 15 15 15 11 Most Carried 15 | 5 8 8 15 15 15 15 13 Average Carried 12 | 3 5 7 10 14 14 14 10 Final Capacity 15 | 5 8 8 15 15 15 15 10 Final Carried 15 | 5 8 8 15 15 14 12 10 Class Distribution -------------------- 62% | Scavenger-Mutant 37% | Mutant Dominant Class ---------------- Mutant | -10/Materials Mutant | -10/Mines Scavenger-Mutant | -9/Materials Scavenger-Mutant | -9/Mines Scavenger-Mutant | -8/Materials Scavenger-Mutant | -8/Garrison Mutant | -8/Materials Resources | -11 -10 -10 -9 -9 -8 -8 -8 ----------- Run | Yrd Mat Min Mat Min Mat Gar Mat Matter Collected 1281 | 205 106 27 301 145 110 242 145 Remotely . | . . . . . . . . Salvage Created 2192 | . 123 . 1223 198 159 306 183 Parts 178 | . 12 . 97 18 14 32 5 Haulers Intercepted 4 | . . . 4 . . . . Recyclers Shooed 1 | . . . . . 1 . . Parts Field Recycled . | . . . . . . . . Retrieved Matter . | . . . . . . . . Parts Self-Destructed . | . . . . . . . . Prevented . | . . . . . . . . Kills | -11 -10 -10 -9 -9 -8 -8 -8 ------- Run | Yrd Mat Min Mat Min Mat Gar Mat Combat Hostiles Destroyed 56 | . 5 . 25 8 1 13 4 Melee 1 | . . . . . . . 1 Guns 46 | . 5 . 24 8 . 9 . AOE 5 | . . . 1 . . 4 . Classes Destroyed 14 | . 2 . 9 1 . 1 1 Worker 4 | . . . 2 1 1 . . Builder 3 | . . . 1 1 1 . . Tunneler 1 | . . . . . . . 1 Hauler 4 | . . . 4 . . . . Recycler 2 | . . . 1 . 1 . . Mechanic 1 | . . . 1 . . . . Operator 4 | . . . 1 . 1 . 2 Watcher 3 | . . . 3 . . . . Swarmer 30 | . 3 . 13 7 . 7 . Grunt 14 | . 2 . 6 . . 3 3 Brawler 1 | . . . . 1 . . . Duelist 1 | . . . 1 . . . . Sentry 8 | . . . 6 . 1 . 1 Programmer 3 | . . . . . . 3 . Best Kill Streak 11 | . 5 . 11 5 2 4 1 Combat Bots Only 10 | . 5 . 10 4 1 4 1 Max Kills in Single Turn 4 | . 1 . 3 1 1 4 1 Gunslinging 1 | . . . 1 . . 1 . Exploded 4 | . . . 1 . . 4 . Melee 1 | . . . . . . . 1 Uniques/NPCs Destroyed . | . . . . . . . . Combat | -11 -10 -10 -9 -9 -8 -8 -8 -------- Run | Yrd Mat Min Mat Min Mat Gar Mat Hostile Shots Fired 377 | . 28 6 92 25 9 121 96 Missed 100 | . 9 . 25 8 3 26 29 Damage Taken 3825 | . 215 47 961 136 106 1382 978 Core 773 | . 38 7 156 13 . 280 279 Absorbed by Shields . | . . . . . . . . Regen/Repaired (Parts) 12 | . . . 12 . . . . Core Remaining (%) 79 | 100 . 82 . 57 . . . Volleys Fired 168 | . 14 2 64 22 14 52 . Largest 2 | . 2 2 2 2 2 2 . Hottest 98 | . 60 60 98 43 43 79 . Shots Fired 318 | . 28 4 121 44 28 93 . Gun 310 | . 28 4 119 44 28 87 . Cannon . | . . . . . . . . Launcher 5 | . . . 2 . . 3 . Special 3 | . . . . . . 3 . Kinetic 208 | . 14 2 39 44 28 81 . Thermal 50 | . 14 2 25 . . 9 . Explosive 5 | . . . 2 . . 3 . Electromagnetic 55 | . . . 55 . . . . Robot Hit Streak 21 | . 12 2 21 8 6 7 . Robot Miss Streak 4 | . 2 1 3 2 4 4 . Penetration Max . | . . . . . . . . Secondary Targets 5 | . . . 1 1 . 3 . Max Gunslinging Chain 1 | . . . 1 1 . 1 . Shots Hit Robots 228 | . 18 2 88 29 15 56 20 Core Hits 114 | . 8 . 62 15 8 21 . Critical Kills . | . . . . . . . . Critical Parts Destroyed 5 | . . . . . . . 5 Critical Strikes 6 | . . . 1 . . . 5 Burn 1 | . . . 1 . . . . Smash 5 | . . . . . . . 5 Melee Attacks 39 | . . . . . . 13 26 Impact 39 | . . . . . . 13 26 Slashing . | . . . . . . . . Piercing . | . . . . . . . . Sneak Attacks 4 | . . . . . . . 4 Combat Hostiles . | . . . . . . . . Follow-up Attacks . | . . . . . . . . Damage Inflicted 4522 | . 213 27 1618 334 252 1319 759 Guns 2984 | . 213 27 1293 334 252 865 . Cannons . | . . . . . . . . Explosions 779 | . . . 325 . . 454 . Melee 759 | . . . . . . . 759 Ramming . | . . . . . . . . Kinetic 1709 | . 85 15 264 334 252 759 . Thermal 764 | . 128 12 518 . . 106 . Explosive 584 | . . . 130 . . 454 . Electromagnetic 706 | . . . 706 . . . . Impact 759 | . . . . . . . 759 Slashing . | . . . . . . . . Piercing . | . . . . . . . . Highest Corruption 32 | . . . . . . 7 32 Average Corruption 12 | . . . . . . 6 13 Corruption Purged . | . . . . . . . . Corruption Blocked . | . . . . . . . . Effects 18 | . . . . . . 3 15 Message Errors 3 | . . . . . . . 3 Matter Fused 5 | . . . . . . 1 4 Heat Flow Errors 1 | . . . . . . . 1 Energy Discharges 1 | . . . . . . . 1 Parts Rejected 1 | . . . . . . . 1 Data Loss (minor) 3 | . . . . . . . 3 Data Loss (major) 2 | . . . . . . . 2 Alerts 1 | . . . . . . 1 . Weapon Failures 1 | . . . . . . 1 . Overload Shots . | . . . . . . . . Overflow Damage 437 | . . . 5 . . 54 378 Projectiles . | . . . . . . . . Explosions 59 | . . . 5 . . 54 . Melee 378 | . . . . . . . 378 Knockbacks 4 | . . . . . . . 4 Impact 4 | . . . . . . . 4 Kinetic . | . . . . . . . . Secondary . | . . . . . . . . Self-Inflicted Damage 229 | . . . 160 . . 69 . Shots 6 | . . . 4 . . 2 . Rammed . | . . . . . . . . Targets Rammed . | . . . . . . . . Kicked . | . . . . . . . . Crushed . | . . . . . . . . Highest Temperature 137 | . 66 . 22 12 24 75 137 Average Temperature 25 | . 39 . 10 5 7 28 75 Received Heat Transfer 1038 | . 84 . 255 6 27 342 324 Siege Activations . | . . . . . . . . Robots Corrupted 3 | . . . . . . . 3 Combat Hostiles 3 | . . . . . . . 3 Parts Fried 12 | . . . 9 . . . 3 Impact Corruptions 15 | . . . . . . . 15 Robots Melted . | . . . . . . . . Combat Hostiles . | . . . . . . . . Parts Melted 4 | . 1 . 1 . 1 1 . Heat Transferred 1648 | . 300 25 1101 . . 222 . Parts Sabotaged . | . . . . . . . . Parts Stolen . | . . . . . . . . Parts Stripped . | . . . . . . . . Power Chain Reactions 3 | . . . 3 . . . . Alert | -11 -10 -10 -9 -9 -8 -8 -8 ------- Run | Yrd Mat Min Mat Min Mat Gar Mat Peak Influence 576 | . 136 228 576 389 154 553 266 Initial 266 | . . 52 88 224 43 100 266 Average 224 | . 52 75 259 257 74 358 119 Maximum Alert Level 2 | . . 1 2 1 . 2 1 Low Security (%) 52 | 100 100 94 36 46 100 21 76 Level 1 30 | . . 5 36 53 . 27 23 Level 2 16 | . . . 27 . . 50 . Level 3 . | . . . . . . . . Level 4 . | . . . . . . . . Level 5 . | . . . . . . . . High Security . | . . . . . . . . Max Security . | . . . . . . . . Squads Dispatched 8 | . 2 . 1 . 2 . 3 Investigation 1 | . . . . . . . 1 Extermination . | . . . . . . . . Reinforcement 7 | . 2 . 1 . 2 . 2 Assault . | . . . . . . . . Garrison . | . . . . . . . . Intercept . | . . . . . . . . Searches Triggered . | . . . . . . . . Construction Impeded . | . . . . . . . . Haulers Reinforced . | . . . . . . . . Active Scanning Responses . | . . . . . . . . Cargo Convoy Interrupts . | . . . . . . . . Stealth | -11 -10 -10 -9 -9 -8 -8 -8 --------- Run | Yrd Mat Min Mat Min Mat Gar Mat Distress Signals 7 | . 1 . 4 . 1 . 1 Communications Jammed . | . . . . . . . . Distress Signals . | . . . . . . . . Times Spotted 108 | . 7 6 39 9 13 17 17 Peak Tracking Total 9 | . 7 3 9 4 6 6 8 Tactical Retreats 10 | . . . 3 . 2 2 3 Traps | -11 -10 -10 -9 -9 -8 -8 -8 ------- Run | Yrd Mat Min Mat Min Mat Gar Mat Traps Triggered 3 | . . . 1 . 1 1 . Indirectly . | . . . . . . . . Trap Hack Attempts . | . . . . . . . . Triggered . | . . . . . . . . Disarmed . | . . . . . . . . Reprogrammed . | . . . . . . . . Reused . | . . . . . . . . Traps Extracted . | . . . . . . . . Installed . | . . . . . . . . Triggered . | . . . . . . . . Machines | -11 -10 -10 -9 -9 -8 -8 -8 ---------- Run | Yrd Mat Min Mat Min Mat Gar Mat Machines Disabled 5 | . . . 3 . . 2 . Max in Single Turn 1 | . . . 1 . . 1 . Garrison Relay 2 | . . . . . . 2 . Machines Repaired . | . . . . . . . . Machines Dismantled 1 | . . . . . . 1 . Machines Sabotaged . | . . . . . . . . Overloaded Fab Kills . | . . . . . . . . Hacking | -11 -10 -10 -9 -9 -8 -8 -8 --------- Run | Yrd Mat Min Mat Min Mat Gar Mat Machines Accessed 20 | . 1 . 11 1 4 1 2 Terminals 15 | . 1 . 7 1 3 1 2 Fabricators . | . . . . . . . . Repair Stations 2 | . . . 2 . . . . Recycling Units 1 | . . . 1 . . . . Scanalyzers 1 | . . . 1 . . . . Garrison Access 1 | . . . . . 1 . . Total Hacks 53 | . 2 . 32 2 8 1 8 Successful 34 | . . . 21 2 6 1 4 Failed 19 | . 2 . 11 . 2 . 4 Catastrophic 4 | . . . 2 . 1 . 1 Database Lockouts . | . . . . . . . . Manual 26 | . 2 . 15 . 5 . 4 Terminals 40 | . 2 . 20 2 7 1 8 Fabricators . | . . . . . . . . Repair Stations 4 | . . . 4 . . . . Recycling Units 2 | . . . 2 . . . . Scanalyzers 6 | . . . 6 . . . . Garrison Access 1 | . . . . . 1 . . Terminal Hacks 13 | . . . 5 2 3 1 2 Prototype ID Bank 1 | . . . 1 . . . . Emergency Access Points 1 | . . . . . . 1 . Terminal Index 1 | . . . . . 1 . . Alert Level 2 | . . . 1 . 1 . . Unreport Threat 4 | . . . 2 . . . 2 Dispatch Records 1 | . . . . 1 . . . Zone Layout 3 | . . . 1 1 1 . . Fabricator Hacks . | . . . . . . . . Repair Station Hacks 2 | . . . 2 . . . . Scan Component 1 | . . . 1 . . . . Repair 1 | . . . 1 . . . . Recycling Unit Hacks 2 | . . . 2 . . . . Report Inventory 1 | . . . 1 . . . . Retrieve Components 1 | . . . 1 . . . . Scanalyzer 6 | . . . 6 . . . . Insert Component 3 | . . . 3 . . . . Analyze 3 | . . . 3 . . . . Garrison Access Hacks 1 | . . . . . 1 . . Unlock Access 1 | . . . . . 1 . . Unauthorized Hacks 10 | . . . 6 . 2 . 2 Terminals 10 | . . . 6 . 2 . 2 Botnet 10 | . . . 6 . 2 . 2 Fabricators . | . . . . . . . . Repair Stations . | . . . . . . . . Recycling Units . | . . . . . . . . Scanalyzers . | . . . . . . . . Garrison Access . | . . . . . . . . Data Cores Recovered . | . . . . . . . . Used . | . . . . . . . . Hacking Detections 18 | . 1 . 10 1 3 1 2 Full Trace Events 2 | . . . 1 . . . 1 Feedback Events . | . . . . . . . . Feedback Blocked . | . . . . . . . . Robot Schematics Acquired . | . . . . . . . . Robots Built . | . . . . . . . . Authchips . | . . . . . . . . Time . | . . . . . . . . Total Robot Build Rating . | . . . . . . . . Part Schematics Acquired 3 | . . . 3 . . . . Parts Built . | . . . . . . . . Authchips . | . . . . . . . . Time . | . . . . . . . . Total Part Build Rating . | . . . . . . . . Parts Repaired 1 | . . . 1 . . . . Time 26 | . . . 26 . . . . Parts Recycled . | . . . . . . . . Recycled Matter . | . . . . . . . . Retrieved Matter . | . . . . . . . . Retrieved Components 9 | . . . 9 . . . . Parts Scanalyzed 3 | . . . 3 . . . . Part Schematics Acquired 3 | . . . 3 . . . . Parts Damaged . | . . . . . . . . Bothacking | -11 -10 -10 -9 -9 -8 -8 -8 ------------ Run | Yrd Mat Min Mat Min Mat Gar Mat Used RIF Installer 1 | . . . . . . 1 . Robots Hacked . | . . . . . . . . Non-combat . | . . . . . . . . Combat . | . . . . . . . . Robot Hacks Applied . | . . . . . . . . Relay Couplers Released 8 | . . . . . . 8 . Machine Destruction 8 | . . . . . . 8 . Attached 1 | . . . . . . . 1 Fabnet Peak Effective % . | . . . . . . . . Robots Rewired . | . . . . . . . . Allies Hacked . | . . . . . . . . Hacks Repelled . | . . . . . . . . Allies | -11 -10 -10 -9 -9 -8 -8 -8 -------- Run | Yrd Mat Min Mat Min Mat Gar Mat Total Allies 6 | . . 4 . 2 . . . Largest Group 4 | . . 4 3 2 2 . . Highest-Rated Group 71 | . . 71 40 45 45 . . Highest-Rated Ally 31 | . . 31 16 31 31 . . Total Orders . | . . . . . . . . Ally Attacks 45 | . . 17 16 4 8 . . Total Damage 420 | . . 126 128 41 125 . . Kills 9 | . . 6 1 2 . . . Allies Corrupted . | . . . . . . . . Allies Melted . | . . . . . . . . Intel | -11 -10 -10 -9 -9 -8 -8 -8 ------- Run | Yrd Mat Min Mat Min Mat Gar Mat Robot Analysis Total . | . . . . . . . . Derelict Logs Recovered 1 | . . . . 1 . . . Drone Launches . | . . . . . . . . Drone Recoveries . | . . . . . . . . Exploration | -11 -10 -10 -9 -9 -8 -8 -8 ------------- Run | Yrd Mat Min Mat Min Mat Gar Mat Turns Passed 4012 | 72 145 328 1093 967 263 748 396 Spaces Moved 2451 | 51 81 254 679 623 152 371 240 Core 41 | 3 . . . . . . 38 Treads 163 | . . . 30 110 . . 23 Legs 592 | 48 81 254 176 . . 4 29 Wheels 1465 | . . . 473 513 152 327 . Hover 188 | . . . . . . 40 148 Flight 2 | . . . . . . . 2 Fastest Speed 50 | 50 120 120 95 125 125 125 66 Average Speed 129 | 115 120 120 121 145 139 134 118 Slowest Speed 260 | 120 120 120 240 240 140 260 260 Overloaded Moves . | . . . . . . . . Propulsion Burnouts . | . . . . . . . . Robots Hopped . | . . . . . . . . Cave-ins Triggered . | . . . . . . . . Exploration Rate (%) 40 | 4 22 42 72 97 26 41 20 Regions Visited 7 Branch Regions 2 Pre-discovered Areas 1 | . . . . 1 . . . Known Exits Taken 3 | . . . 1 1 1 . . Unknown Exits Taken 3 | 1 1 1 . . . . . Scrap Searched 3 | . . 2 . 1 . . . Spaces Dug 3 | . . . . . . 3 . Terrain Destroyed 30 | . . . 18 . . 12 . Melee 3 | . . . . . . 3 . Projectile . | . . . . . . . . AOE 27 | . . . 18 . . 9 . Terrain Rammed . | . . . . . . . . Walls Destroyed . | . . . . . . . . Machines Disabled . | . . . . . . . . Actions | -11 -10 -10 -9 -9 -8 -8 -8 --------- Run | Yrd Mat Min Mat Min Mat Gar Mat Total 2896 | 62 100 273 834 650 182 497 298 Wait 85 | . . 13 38 3 4 11 16 Move 2445 | 50 80 253 678 622 152 370 240 Hop . | . . . . . . . . Pick Up 40 | 7 4 1 17 . 2 8 1 Fast Attach 34 | 3 1 1 10 1 3 6 9 Attach 20 | 2 1 . 5 1 1 9 1 Detach 12 | . . . 4 1 2 4 1 Swap 15 | . . 1 5 . . 8 1 Drop 27 | . . 2 13 . 4 5 3 Fire 168 | . 14 2 64 22 14 52 . Melee 39 | . . . . . . 13 26 Ram . | . . . . . . . . Kick . | . . . . . . . . Crush . | . . . . . . . . Escape Stasis 8 | . . . . . . 8 . Rewire . | . . . . . . . . Trap . | . . . . . . . . Miscellaneous 3 | . . . . . . 3 . Route ------- -11/Scrapyard -10/Materials -10/Mines -9/Materials (discovered 3 exits: *Mat x2 / *Min) -9/Mines (discovered 2 exits: *Mat x2) -8/Materials -8/Garrison -8/Materials History --------- Turn | Location | Event 7 | -11/Scrapyard | Discovered new exit (range 16) 73 | -11/Scrapyard | Entered Materials 139 | -10/Materials | Discovered new exit (range 16) 218 | -10/Materials | Entered Mines 270 | -10/Mines | Assisted by bots powering up and referring to "LRC-V3" 311 | -10/Mines | Build established: Mutant 339 | -10/Mines | Received a Rocket Launcher from a helpful Derelict 367 | -10/Mines | Received a Mining Laser from a helpful Derelict 505 | -10/Mines | Discovered new exit (range 8) 546 | -10/Mines | Entered Materials 546 | -9/Materials | Accompanied by 3 allies 546 | -9/Materials | Evolved 2 slots: Utility x2 605 | -9/Materials | Repaired Hcp. Battery 1138 | -9/Materials | Build established: Scavenger-Mutant 1187 | -9/Materials | Destroyed 10 combat bots 1352 | -9/Materials | Discovered new exit (range 16) 1382 | -9/Materials | Identified exit to Materials 1512 | -9/Materials | Discovered exit to Materials (range 9) 1629 | -9/Materials | Discovered new exit (range 9) 1638 | -9/Materials | Identified exit to Mines 1639 | -9/Materials | Entered Mines 1755 | -9/Mines | Discovered exit to Materials (range 7) 2331 | -9/Mines | Discovered exit to Materials (range 5) 2606 | -9/Mines | Entered Materials 2606 | -8/Materials | Accompanied by 2 allies 2606 | -8/Materials | Evolved 2 slots: Propulsion x1, Utility x1 2616 | -8/Materials | Led the pair of lost Derelicts to an unsafe place 2869 | -8/Materials | Identified exit to Garrison 2869 | -8/Materials | Entered Garrison 2913 | -8/Garrison | Triggered checkpoint 2931 | -8/Garrison | Installed Relay Interface Framework 2956 | -8/Garrison | Garrison Relay disabled 3243 | -8/Garrison | Triggered checkpoint 3314 | -8/Garrison | Discovered new exit (range 10) 3325 | -8/Garrison | Triggered checkpoint 3382 | -8/Garrison | Garrison Relay disabled 3543 | -8/Garrison | Core integrity fell below 50% 3565 | -8/Garrison | Lost 8 parts (1p3n1u3w) 3616 | -8/Garrison | Identified exit to Materials 3617 | -8/Garrison | Entered Materials 3849 | -8/Materials | System corruption reached 10% 3921 | -8/Materials | Core integrity fell below 20% 3947 | -8/Materials | System corruption reached 30% 4013 | -8/Materials | Destroyed by H-55 Commando with Gauss Rifle Last Messages --------------- 03987_ G-47 Trooper knocked back. 03988_ G-47 Trooper system terminally corrupted. 03992_ T0A#00VJ6%>D NLN8=&7A4XRRJIB%57< R2&ID 03994_ G-47 Trooper knocked back. 03998_ Slug penetrates U-05 Engineer. 03998_ U-05 Engineer destroyed. 03998_ Aluminum Leg destroyed. 04001_ K-01 Serf collects debris. 04001_ Penetrated by Slug. 04004_ Slug penetrates Wall. 04005_ K-01 Serf collects debris. 04007_ System corrupted: Substantial component data lost. 04009_ K-01 Serf collects debris. 04010_ Penetrated by Slug. 04011_ Acquired 13 matter. 04013_ G-47 Trooper suffers critical hit (Smash). 04013_ Destroyed Aluminum Leg. 04013_ Destroyed Lgt. Nuclear Core. 04013_ G-47 Trooper system corrupted by crushing effect. 04013_ G-47 Trooper knocked back. Map ----- +----------------------------------------------------+ | ?????????????# """"" # ^ # ??### #???# | | ?????????????# """"" ### #### # ??+ #?###+ | | ????????????# """ # !" ?""##### ??### #?# | | ????????????##?? " %= #???? ???# #?# | | ????????????????##""" """""????? ???# #?# | | ????????????????? " [% "#??###+#### #?# | | ????????????????[ " = "#??# ## ### | | ??????????????? " ! "#### # | | ??????????????? * " =%= " T + | | ?????????????? " # ### # | | ?????????????? """" ##+##"""# #?# # | | ????????????? " # #?###### # | | ???????????????#???### # #######????# # | | ??????????????????????## #??????????# ##### # | | ???????????????????????# w ########???# #???# # | | ???????????????????????#= # #??##!##??# #### | | ???????????????????????#% # #### #??# #??? | | ???????????????????????# # + T #### #### | | ???????????????????????+ wk #### # # | | ???????????????????????# # ! #??##### ##### # | | ???????????????????????# # #??????# #?????# | | ???????????????????????# ########??????# #???? # | | ???????????????????????# #?????????????# #####/# | | ???????????????????????# #?????????????# # | | ???????????????????????# ! #?????????????# # """ | | ???????????????????????#=@=#?????????????# #! """ | | ???????????????????????# ! #?????????????# # """ | | ???????????????????????# g #?????????????# #* """ | | ???????????????????????# +?????????????# # | | ???????????????????????#h #?????????????# ##+#### | | ???????????????????????# #?????????????# # | | ??????????????????????? #?????????????#### # | | ??????????????????????? ????????????????# # | | ??????????????????????? #????????????????# # | | ??????????????????????######????????????????###### | | ?????????????????????????????????????????????????? | | ?????????????????????????????????????????????????? | | ?????????????????????????????????????????????????? | | ?????????????????????????????????????????????????? | | ?????????????????????????????????????????????????? | | ?????????????????????????????????????????????????? | | ?????????????????????????????????????????????????? | | ?????????????????????????????????????????????????? | | ?????????????????????????????????????????????????? | | ?????????????????????????????????????????????????? | | ?????????????????????????????????????????????????? | | ?????????????????????????????????????????????????? | | ?????????????????????????????????????????????????? | | ?????????????????????????????????????????????????? | | ?????????????????????????????????????????????????? | +----------------------------------------------------+ Best States ------------- Heat Dissipation 42 Energy Generation 18 Energy Capacity 280 Matter Stores 300 Matter Capacity 300 Sight Range 16 Terrain Scan Density 10 Additional Mass Support 6 Armor Coverage 600 Evasion (%) 55 Targeting Accuracy 5 Recoil Reduction 1 Offensive Hacking 10 Relay Coupler Types 1 Relay Coupler Value 24 Item Schematics ----------------- Weight Redist. System | -9/Materials | Scanalyzed Com. Wheel | -9/Materials | Scanalyzed Hcp. Battery | -9/Materials | Scanalyzed Robot Schematics ------------------ None Fabricated ------------ Nothing Alien Tech Used ----------------- None Achievements -------------- None Challenges ------------ None Game ------ Seed ThermicLightMegatreads Manual? 0 Play Time 00:48:57 Cumulative 78.3 hours Start 2024.08.19 @ 17:09:05 End 2024.08.19 @ 18:04:50 Sessions 1 Manual Loads 0 Difficulty Rogue Special Mode None Game No. 47 Rogue 39 Adventurer 8 Explorer 0 Win Type - Total 1 Types 1/0/0/0/0/0/0/0/0 Lore% 26 Gallery% 48 Achievement% 42 Wizard Run 0 Options --------- Layout 0 ASCII 0 Keyboard 1 Movement Numpad Keybinds 1 Fullscreen 1 Font 36/Smallcaps Map View 38x25 Zoom Use 93% Tactical HUD 1 Map Filters NONE Filters NONE Steam 1 RUN: 23f09bb7-427e-4145-a4a5-6e05802b51c8